bitfinex/quotes_ETHUSD_20250223
["timestamp","ask_amount","ask_price","bid_price","bid_amount"]
[1740278386585,4.3963,2760.5,2760.1,0.372352]
[1740278390421,3.62236,2760.7,2760.1,0.372352]
[1740278390623,3.62255,2760.5,2760.1,0.372352]
[1740278390792,0.7737,2760.4,2760.2,0.264]
[1740278390990,4.3961,2760.6,2760.2,0.6899462]
[1740278393107,3.62253,2760.5,2760.2,0.6899462]
[1740278393671,0.7737,2760.6,2760.2,0.6899462]
[1740278394703,0.7737,2760.6,2760.2,4.3128462]
[1740278396350,0.7737,2760.6,2760.2,7.9356862]
[1740278396514,0.7737,2760.6,2760.3,0.83080382]
[1740278396941,0.7737,2760.6,2760.2,3.88684]
[1740278397750,0.8217,2760.8,2760.3,3.62272]
[1740278397917,3.6226,2760.5,2760.0,0.71853245]
[1740278398113,3.62243,2760.6,2760.1,3.62304]
[1740278398326,3.62243,2760.6,2760.2,0.43415725]
[1740278398746,0.7653,2760.7,2760.3,3.62278]
[1740278398948,4.38761,2760.7,2760.2,0.43415725]
[1740278400666,4.38761,2760.7,2760.2,4.05706725]
[1740278400870,0.7653,2760.7,2760.2,4.05706725]
[1740278401065,3.6224,2760.6,2760.2,4.05706725]
[1740278401361,0.7653,2760.7,2760.2,4.05706725]
[1740278401562,0.7653,2760.7,2760.2,0.43415725]
[1740278401761,3.62266,2760.4,2760.0,4.34161245]
[1740278402368,3.62266,2760.4,2760.0,3.62308]
[1740278402568,0.7653,2760.3,2760.0,3.62308]
[1740278405960,0.7653,2760.5,2760.1,3.62295]
[1740278406164,0.7653,2760.5,2760.1,4.42164239]
[1740278407294,0.7653,2760.5,2760.1,4.52214239]
[1740278408493,0.7653,2760.5,2760.1,0.89919239]
[1740278408794,4.38785,2760.5,2760.1,0.79869239]
[1740278410698,0.7653,2760.5,2760.1,0.79869239]
[1740278410898,0.7653,2760.5,2760.1,4.42167239]
[1740278412224,0.7653,2760.5,2760.2,0.80447524]
[1740278412591,0.7653,2760.5,2760.0,3.62308]
[1740278413325,0.7653,2760.5,2760.1,3.62299]
[1740278414428,0.7653,2760.5,2760.1,0.262]
[1740278414429,3.62273,2760.4,2760.1,0.262]
[1740278414729,0.7653,2760.5,2760.1,0.262]
[1740278414941,4.38784,2760.5,2760.1,0.262]
[1740278415723,4.38784,2760.5,2759.9,4.36408389]
[1740278415892,0.7653,2760.5,2760.0,0.262]
[1740278416940,3.62286,2760.3,2759.9,0.82198536]
[1740278417520,0.7653,2760.5,2759.9,0.82198536]
[1740278418232,3.62288,2760.3,2759.9,0.82198536]
[1740278418419,3.62281,2760.3,2759.9,0.82198536]
[1740278418614,3.62281,2760.3,2760.0,0.52667776]
[1740278419228,3.62276,2760.4,2760.0,0.52667776]
[1740278419436,3.62279,2760.3,2760.0,0.52667776]
[1740278420336,3.62293,2760.2,2760.0,0.52667776]
[1740278421296,3.62305,2760.1,2759.8,0.1005]
[1740278421595,3.62318,2760.0,2759.8,0.261]
[1740278421800,0.04120029,2759.9,2759.8,0.261]
[1740278423030,3.66459029,2759.9,2759.6,5.651]
[1740278423233,0.04120029,2759.9,2759.8,3.72395]
[1740278423535,0.04120029,2759.9,2759.8,5.023802]
[1740278423710,7.40157,2760.7,2760.0,3.62314]
[1740278423905,7.40157,2760.7,2759.8,1.400352]
[1740278423906,0.7793,2760.7,2760.3,3.62267]
[1740278424111,4.40157,2760.7,2760.3,3.72317]
[1740278424311,4.40157,2760.7,2760.3,0.472817]
[1740278424512,4.40157,2760.7,2760.3,0.1005]
[1740278425499,0.0412603,2760.6,2760.3,0.1005]
[1740278426658,0.0412603,2760.6,2760.2,3.62292]
[1740278426659,3.62259,2760.5,2760.1,0.73749704]
[1740278427017,0.7793,2760.3,2760.1,0.73749704]
[1740278427222,0.04119481,2760.2,2760.1,0.73749704]
[1740278427465,0.7793,2760.3,2760.1,0.73749704]
[1740278427659,0.04119481,2760.2,2760.1,0.73749704]
[1740278427866,0.04119481,2760.2,2760.1,1.18361474]
[1740278428024,0.7793,2760.3,2760.1,1.18361474]
[1740278428223,0.04119481,2760.2,2760.1,1.18361474]
[1740278428441,0.7793,2760.3,2760.1,0.73749704]
[1740278428643,0.04119481,2760.2,2760.1,0.73749704]
[1740278429020,0.7793,2760.3,2760.1,0.73749704]
[1740278429221,0.04119481,2760.2,2760.1,0.73749704]
[1740278429746,0.7793,2760.3,2760.1,0.73749704]
[1740278429920,0.04119481,2760.2,2760.1,1.18362574]
[1740278430264,4.4019,2760.5,2760.1,1.18362574]
[1740278430466,0.04119481,2760.2,2760.1,1.18362574]
[1740278430623,3.62283,2760.3,2760.1,1.18362574]
[1740278430824,0.03995552,2760.2,2760.1,0.73749704]
[1740278431025,3.62283,2760.3,2760.1,0.73749704]
[1740278431366,0.03995552,2760.2,2760.1,0.73749704]
[1740278431522,3.62283,2760.3,2760.1,0.73749704]
[1740278431870,0.03995552,2760.2,2760.1,0.73749704]
[1740278432223,3.62283,2760.3,2760.1,0.73749704]
[1740278432457,0.03995552,2760.2,2760.1,0.73749704]
[1740278432657,0.08595392,2760.2,2760.1,0.73749704]
[1740278432826,3.62283,2760.3,2760.1,0.73749704]
[1740278433023,0.08596679,2760.2,2760.1,0.73749704]
[1740278433224,3.62283,2760.3,2760.1,0.73749704]
[1740278433424,0.08596679,2760.2,2760.1,0.73749704]
[1740278433675,3.62283,2760.3,2760.1,0.73749704]
[1740278433927,0.08596679,2760.2,2760.1,0.73749704]
[1740278434208,3.62283,2760.3,2760.1,0.73749704]
[1740278434376,0.08596679,2760.2,2760.1,0.73749704]
[1740278434575,0.7793,2760.5,2760.1,0.73749704]
[1740278434773,3.62287,2760.3,2760.1,0.73749704]
[1740278434977,0.08596679,2760.2,2760.1,0.73749704]
[1740278435178,3.62287,2760.3,2760.1,0.73749704]
[1740278435379,0.08596679,2760.2,2760.1,0.73749704]
[1740278435604,3.62287,2760.3,2760.1,0.73749704]
[1740278435805,0.08584761,2760.2,2760.1,0.73749704]
[1740278435964,3.62287,2760.3,2760.1,0.73749704]
[1740278436291,0.08584761,2760.2,2760.1,0.73749704]
[1740278436469,0.08584761,2760.2,2760.1,1.18362674]
[1740278436669,3.62287,2760.3,2760.1,1.18362674]
[1740278440116,4.4019,2760.5,2760.1,1.18362674]
[1740278440426,0.7793,2760.5,2760.1,1.18362674]
[1740278440582,3.62247,2760.6,2760.1,4.80666674]
[1740278441210,0.8034,2760.7,2760.3,3.6227]
[1740278441429,0.8034,2760.7,2760.2,0.84297467]
[1740278441978,3.6224,2760.6,2760.2,0.84297467]
[1740278442226,4.42567,2760.7,2760.2,4.46588467]
[1740278442384,3.62227,2760.7,2760.3,0.1005]
[1740278442577,3.62227,2760.7,2760.3,0.63088817]
[1740278443198,3.62227,2760.7,2760.3,4.25365817]
[1740278444012,0.8034,2760.9,2760.3,0.63088817]
[1740278444188,1.3534,2761.1,2760.7,3.62214]
[1740278444383,4.97515,2761.1,2760.7,0.26]
[1740278444582,1.3534,2761.1,2760.7,0.3605]
[1740278444778,0.55,2761.1,2761.0,3.62187]
[1740278444980,0.55,2761.1,2760.9,3.62199]
[1740278445205,0.55,2761.1,2760.9,4.38246]
[1740278447817,0.55,2761.1,2761.0,3.72237]
[1740278448383,0.62148364,2761.1,2761.0,3.72237]
[1740278449511,0.55,2761.1,2761.0,3.72237]
[1740278450221,0.55,2761.1,2760.9,0.76047]
[1740278450715,0.55,2761.1,2761.0,0.52112252]
[1740278451486,4.17174,2761.1,2760.8,0.72815516]
[1740278452218,4.4254,2760.9,2760.7,0.26]
[1740278452389,3.69390128,2760.8,2760.7,0.26]
[1740278452585,0.07177128,2760.8,2760.3,0.7329934]
[1740278452784,3.6224,2760.6,2760.3,1.37139274]
[1740278453122,0.07140233,2760.5,2760.2,0.97288702]
[1740278453922,4.3806,2760.7,2760.2,0.97288702]
[1740278454431,0.07146524,2760.6,2760.2,0.97288702]
[1740278455007,0.07146524,2760.6,2760.2,4.59571702]
[1740278455693,0.07146524,2760.6,2760.2,4.59570702]
[1740278455895,0.07146524,2760.6,2760.3,0.4595707]
[1740278457896,0.07146524,2760.6,2760.5,3.62253]
[1740278458097,0.55,2761.1,2760.5,3.62253]
[1740278458305,0.55,2761.1,2760.7,3.62223]
[1740278458509,0.06336761,2761.0,2760.7,3.62223]
[1740278458716,0.06336761,2761.0,2760.9,3.622]
[1740278461706,0.06336761,2761.0,2760.8,1.09913229]
[1740278461898,0.06336761,2761.0,2760.8,1.36013229]
[1740278462228,0.06336761,2761.0,2760.8,0.623223]
[1740278462534,0.06336761,2761.0,2760.8,0.261]
[1740278463228,0.06336761,2761.0,2760.4,9.01261]
[1740278463229,3.62207,2760.9,2760.7,0.261]
[1740278463434,4.45653918,2760.8,2760.7,0.261]
[1740278463745,0.83440918,2760.8,2760.7,0.261]
[1740278464244,0.06380918,2760.8,2760.7,3.88326]
[1740278464398,1.3206,2761.1,2760.7,4.70562251]
[1740278464598,0.06393498,2761.0,2760.7,4.70562251]
[1740278465707,0.06393498,2761.0,2760.7,1.08336251]
[1740278467033,0.06393498,2761.0,2760.8,3.62213]
[1740278467516,0.06393498,2761.0,2760.7,1.08336251]
[1740278467738,0.06393498,2761.0,2760.7,4.70557251]
[1740278467938,0.06393498,2761.0,2760.8,4.45485425]
[1740278469019,0.06393498,2761.0,2760.9,3.622]
[1740278471221,0.06393498,2761.0,2760.8,4.71585425]
[1740278471530,0.06393498,2761.0,2760.8,7.50512]
[1740278472251,0.06393498,2761.0,2760.8,3.88305]
[1740278472444,0.06393498,2761.0,2760.9,3.622]
[1740278472952,0.7706,2761.3,2760.9,3.622]
[1740278473150,0.06305166,2761.0,2760.9,3.622]
[1740278473337,0.7706,2761.3,2760.9,4.382555]
[1740278473544,0.06305166,2761.0,2760.9,4.382555]
[1740278473743,0.7706,2761.3,2760.9,0.760555]
[1740278473933,0.06305166,2761.0,2760.9,4.382555]
[1740278474249,0.7706,2761.3,2761.1,3.62172]
[1740278474835,0.7706,2761.3,2760.9,4.382555]
[1740278476440,0.7706,2761.3,2760.9,4.382475]
[1740278476754,0.7706,2761.3,2761.1,3.62172]
[1740278476955,0.7706,2761.3,2761.0,4.0862175]
[1740278476956,0.7706,2761.3,2761.0,4.0861475]
[1740278477321,0.7706,2761.3,2761.0,0.4643475]
[1740278477957,0.06348683,2761.2,2761.0,0.4643475]
[1740278478157,0.06348683,2761.2,2761.1,0.40863375]
[1740278478754,0.7706,2761.3,2761.1,0.40863375]
[1740278479061,0.06348683,2761.2,2761.1,0.40863375]
[1740278479221,0.7706,2761.3,2761.1,0.40863375]
[1740278479420,0.06348683,2761.2,2761.1,0.40863375]
[1740278479659,0.7706,2761.3,2761.1,0.40863375]
[1740278479958,0.06348683,2761.2,2761.1,0.40863375]
[1740278480256,0.7706,2761.3,2761.1,0.40863375]
[1740278480459,0.06348683,2761.2,2761.1,0.40863375]
[1740278480635,0.7706,2761.3,2761.1,0.40863375]
[1740278480835,0.06348683,2761.2,2761.1,0.40863375]
[1740278481048,0.7706,2761.3,2761.1,0.40863375]
[1740278481249,0.06348683,2761.2,2761.1,0.40863375]
[1740278481444,4.39209,2761.3,2761.0,0.4643475]
[1740278481660,3.68509683,2761.2,2760.9,0.26]
[1740278482557,0.7714,2761.1,2760.9,0.26]
[1740278483060,0.06338683,2761.0,2760.9,0.26]
[1740278483557,0.06338683,2761.0,2760.6,4.35169972]
[1740278483760,0.06338683,2761.0,2760.7,0.43516997]
[1740278484426,0.06338683,2761.0,2760.7,4.05740997]
[1740278485957,0.06338683,2761.0,2760.7,4.41790997]
[1740278486330,4.3928,2761.4,2760.9,3.62193]
[1740278486961,0.7714,2761.4,2760.7,0.79566997]
[1740278487150,0.7714,2761.4,2760.7,0.3605]
[1740278487356,0.7714,2761.4,2761.0,3.62185]
[1740278487742,0.7714,2761.4,2761.0,7.24365]
[1740278488069,0.7714,2761.4,2761.0,3.6218]
[1740278488269,0.7714,2761.4,2761.0,7.2436]
[1740278488468,0.7714,2761.4,2761.0,4.34616]
[1740278488663,0.06338858,2761.3,2761.0,4.34616]
[1740278495276,0.06338858,2761.3,2761.1,3.62164]
[1740278495866,0.06338858,2761.3,2761.0,0.72436]
[1740278499381,0.06338858,2761.3,2761.2,0.74202203]
[1740278504145,3.68486858,2761.3,2761.2,0.74202203]
[1740278504448,3.68486858,2761.3,2760.7,3.62219]
[1740278504449,3.62187,2761.0,2760.7,0.259]
[1740278504770,0.88913372,2760.9,2760.7,0.259]
[1740278504971,0.88913372,2760.9,2760.8,0.70815457]
[1740278506199,0.06323372,2760.9,2760.8,0.70815457]
[1740278506568,0.8259,2761.1,2760.8,0.70815457]
[1740278506766,0.8259,2761.1,2760.9,0.45893946]
[1740278510279,0.06313547,2761.0,2760.9,0.45893946]
[1740278510806,4.44741,2761.3,2760.9,0.45893946]
[1740278510973,0.06319348,2761.0,2760.9,0.45893946]
[1740278511173,4.44741,2761.3,2760.9,0.45893946]
[1740278511397,0.06319348,2761.0,2760.9,0.45893946]
[1740278511705,4.44741,2761.3,2760.9,0.45893946]
[1740278511909,0.06331926,2761.2,2760.9,0.45893946]
[1740278512204,0.06331926,2761.2,2761.0,0.4789134]
[1740278512403,4.44741,2761.3,2761.0,0.4789134]
[1740278512702,4.44741,2761.3,2760.9,0.1005]
[1740278512914,4.44741,2761.3,2760.9,3.7225]
[1740278513204,0.06331926,2761.2,2761.0,3.62185]
[1740278513503,0.8259,2761.3,2761.0,3.62185]
[1740278513674,0.06327415,2761.2,2761.0,3.62185]
[1740278513875,0.8259,2761.3,2761.1,0.372235]
[1740278514074,0.06327415,2761.2,2761.1,0.372235]
[1740278514276,3.8005,2761.5,2761.1,0.372235]
[1740278514475,0.06339991,2761.4,2761.1,0.372235]
[1740278514705,0.06339991,2761.4,2761.0,3.62175]
[1740278515615,0.06339991,2761.4,2761.1,3.62169]
[1740278517007,0.06339991,2761.4,2760.9,3.72241]
[1740278517213,0.06339991,2761.4,2760.9,7.3443]
[1740278517400,0.06339991,2761.4,2760.9,3.72239]
[1740278517597,3.68474991,2761.4,2761.0,0.44305446]
[1740278519901,0.06339991,2761.4,2761.0,0.44305446]
[1740278520214,0.06339991,2761.4,2761.0,0.1005]
[1740278520410,0.06339991,2761.4,2761.1,3.62174]
[1740278520588,4.41777,2761.6,2761.1,3.62174]
[1740278520793,0.06338857,2761.3,2761.2,3.62161]
[1740278520990,0.7966,2761.6,2761.1,3.62173]
[1740278521216,0.06338857,2761.3,2761.2,3.993733]
[1740278521394,0.7966,2761.6,2761.2,3.993733]
[1740278521594,0.06346592,2761.3,2761.2,3.993733]
[1740278521808,0.7966,2761.6,2761.2,3.993733]
[1740278521977,0.06346592,2761.3,2761.2,0.372223]
[1740278522183,4.41776,2761.6,2761.2,0.372223]
[1740278522381,0.06346592,2761.3,2761.2,0.372223]
[1740278522582,4.41776,2761.6,2761.2,0.372223]
[1740278522800,0.06346592,2761.3,2761.2,0.372223]
[1740278523005,4.41776,2761.6,2761.2,0.372223]
[1740278523193,0.06346592,2761.3,2761.2,0.372223]
[1740278523389,3.62135,2761.4,2761.2,0.372223]
[1740278523612,4.4249,2761.2,2760.7,3.88117]
[1740278523798,0.8032,2761.2,2760.8,0.258]
[1740278524104,0.06334016,2761.1,2760.8,0.258]
[1740278527921,0.06334016,2761.1,2760.8,3.88008]
[1740278528721,0.06334016,2761.1,2760.8,0.258]
[1740278528924,0.06334016,2761.1,2760.9,0.388017]
[1740278533723,0.06334016,2761.1,2760.7,0.258]
[1740278533927,3.68509016,2761.1,2760.7,0.258]
[1740278537421,7.30694016,2761.1,2760.7,0.258]
[1740278537620,3.68509016,2761.1,2760.7,0.258]
[1740278537995,3.68509016,2761.1,2760.7,0.98515798]
[1740278538197,3.68509016,2761.1,2760.7,1.44592478]
[1740278539227,0.06334016,2761.1,2760.7,1.44592478]
[1740278539396,3.68509016,2761.1,2760.7,1.44592478]
[1740278541029,0.06334016,2761.1,2760.7,1.44592478]
[1740278544039,0.06334016,2761.1,2760.7,5.06817478]
[1740278544240,0.06334016,2761.1,2760.8,0.50681748]
[1740278545233,0.06334016,2761.1,2760.8,0.60731748]
[1740278547709,0.06334016,2761.1,2760.8,4.22944748]
[1740278548442,6.05746883,2761.4,2760.8,4.22944748]
[1740278548609,0.06309034,2761.0,2760.8,4.22944748]
[1740278548809,6.05746883,2761.4,2760.9,0.88368555]
[1740278551542,0.063279,2761.3,2760.9,0.88368555]
[1740278553233,0.063279,2761.3,2761.0,3.6218]
[1740278553530,0.063279,2761.3,2761.1,3.62166]
[1740278553733,6.01492883,2761.6,2760.9,0.88368555]
[1740278553978,0.06348853,2761.5,2760.8,0.1005]
[1740278554152,0.06348853,2761.5,2761.1,3.62172]
[1740278554716,0.06348853,2761.5,2761.2,0.1005]
[1740278557052,0.06348853,2761.5,2761.2,0.83640042]
[1740278557420,0.06348853,2761.5,2761.2,4.45794042]
[1740278557633,0.06348853,2761.5,2761.2,1.64436046]
[1740278560260,0.06348853,2761.5,2761.2,5.26596046]
[1740278560449,0.06348853,2761.5,2761.3,3.6214]
[1740278561738,2.39381883,2761.8,2761.3,3.6214]
[1740278561925,0.06138882,2761.7,2761.3,3.62139]
[1740278562121,1.63941883,2762.0,2761.6,3.62097]
[1740278562346,0.06151453,2761.9,2761.6,0.257]
[1740278564037,3.68224453,2761.9,2761.6,0.257]
[1740278564239,0.06151453,2761.9,2761.6,0.257]
[1740278565665,3.62102,2761.7,2761.4,0.52657505]
[1740278565865,0.7881,2761.7,2761.4,0.78357505]
[1740278566028,0.06132596,2761.6,2761.4,0.78357505]
[1740278566228,0.06132596,2761.6,2761.5,0.6173575]
[1740278570371,5.32182479,2761.6,2761.4,0.257]
[1740278570545,0.06132596,2761.6,2761.4,0.257]
[1740278571078,3.62091,2761.8,2761.4,0.257]
[1740278571240,0.06144355,2761.5,2761.4,0.257]
[1740278571570,3.62091,2761.8,2761.4,0.257]
[1740278571736,0.06144355,2761.5,2761.4,0.72848504]
[1740278571938,3.62091,2761.8,2761.4,0.72848504]
[1740278572133,0.06156929,2761.7,2761.4,0.72848504]
[1740278572360,3.62091,2761.8,2761.4,0.72848504]
[1740278572583,0.06156929,2761.7,2761.4,0.72848504]
[1740278572783,3.62091,2761.8,2761.5,0.4349935]
[1740278572983,0.06150642,2761.6,2761.4,0.257]
[1740278573166,3.62091,2761.8,2761.4,0.257]
[1740278573372,0.06156929,2761.7,2761.4,0.257]
[1740278573690,3.62091,2761.8,2761.4,0.257]
[1740278574488,0.06156929,2761.7,2761.4,0.257]
[1740278574690,0.06156929,2761.7,2761.5,0.387845]
[1740278574873,3.62091,2761.8,2761.5,0.387845]
[1740278575341,0.06156929,2761.7,2761.5,0.387845]
[1740278575740,7.24181,2761.8,2761.5,0.387845]
[1740278575976,0.06156929,2761.7,2761.4,0.257]
[1740278576293,7.24181,2761.8,2761.4,0.257]
[1740278576440,0.06150642,2761.6,2761.4,0.257]
[1740278576771,0.06144355,2761.5,2761.4,0.257]
[1740278577160,7.24181,2761.8,2761.4,0.257]
[1740278577361,0.06156929,2761.7,2761.4,0.257]
[1740278577562,7.24181,2761.8,2761.4,0.72848504]
[1740278577742,5.32194812,2761.7,2761.4,0.72848504]
[1740278578747,0.8012,2761.6,2761.2,0.73590042]
[1740278578951,1.70086238,2761.5,2761.2,0.73590042]
[1740278579172,3.62148,2761.3,2761.2,0.99290042]
[1740278579342,3.68279781,2761.3,2761.2,0.99290042]
[1740278579743,0.06131781,2761.3,2761.2,0.99290042]
[1740278579944,3.62135,2761.4,2761.2,1.64124046]
[1740278580178,0.06131781,2761.3,2761.2,1.64124046]
[1740278583380,0.06143383,2761.3,2761.2,1.64124046]
[1740278583679,5.26063883,2761.5,2761.2,1.64124046]
[1740278583876,0.06143383,2761.3,2761.2,1.64124046]
[1740278584081,5.26063883,2761.5,2761.2,1.64124046]
[1740278584258,0.06143383,2761.3,2761.2,1.64124046]
[1740278584452,5.26063883,2761.5,2761.2,1.64124046]
[1740278584659,0.06143383,2761.3,2761.2,1.64124046]
[1740278584858,5.26063883,2761.5,2761.2,1.64124046]
[1740278585066,0.06143383,2761.3,2761.2,1.64124046]
[1740278585270,5.26063883,2761.5,2761.2,1.64124046]
[1740278585481,0.06143383,2761.3,2761.2,1.64124046]
[1740278585662,5.26063883,2761.5,2761.2,1.64124046]
[1740278585861,0.06143383,2761.3,2761.2,1.64124046]
[1740278586063,5.26063883,2761.5,2761.2,1.64124046]
[1740278586359,0.06143383,2761.3,2761.2,1.64124046]
[1740278586551,5.26063883,2761.5,2761.2,1.64124046]
[1740278586947,3.62135,2761.4,2761.2,1.64124046]
[1740278587152,3.62148,2761.3,2761.2,0.73590042]
[1740278587380,3.68291383,2761.3,2761.2,0.73590042]
[1740278587761,4.48411383,2761.3,2761.2,0.73590042]
[1740278588367,6.12353266,2761.3,2761.2,0.73590042]
[1740278591270,0.06143383,2761.3,2761.2,0.73590042]
[1740278592490,0.06143383,2761.3,2761.2,4.35751042]
[1740278592791,6.06160883,2761.7,2761.2,4.35751042]
[1740278593479,8.24,2761.8,2761.4,0.1005]
[1740278593678,8.24,2761.8,2761.5,3.62114]
[1740278593893,8.24,2761.8,2761.6,0.257]
[1740278594888,0.05724606,2761.7,2761.6,0.257]
[1740278595309,8.24,2761.8,2761.6,0.257]
[1740278595476,0.05724606,2761.7,2761.6,0.257]
[1740278595805,13.50024883,2761.8,2761.6,0.257]
[1740278596024,0.05724606,2761.7,2761.6,0.257]
[1740278596179,0.05724606,2761.7,2761.6,1.0904307]
[1740278596504,9.87941883,2761.8,2761.6,0.257]
[1740278596710,0.05724606,2761.7,2761.6,0.257]
[1740278597125,9.87941883,2761.8,2761.6,0.257]
[1740278597310,0.05724606,2761.7,2761.6,0.257]
[1740278597792,4.63941883,2761.8,2761.6,0.257]
[1740278598111,0.05724606,2761.7,2761.6,0.257]
[1740278598405,4.63941883,2761.8,2761.6,0.257]
[1740278598577,0.05724606,2761.7,2761.6,0.257]
[1740278598777,4.63941883,2761.8,2761.6,0.257]
[1740278599087,0.05724606,2761.7,2761.6,0.257]
[1740278599415,4.63941883,2761.8,2761.6,0.257]
[1740278599616,0.05724606,2761.7,2761.6,0.257]
[1740278600113,4.63941883,2761.8,2761.6,0.257]
[1740278600317,0.05750416,2761.7,2761.6,0.257]
[1740278600612,4.63941883,2761.8,2761.6,0.257]
[1740278600800,0.05750416,2761.7,2761.6,0.257]
[1740278601007,4.63941883,2761.8,2761.6,0.257]
[1740278601181,0.05750416,2761.7,2761.6,0.257]
[1740278601509,4.63941883,2761.8,2761.6,0.257]
[1740278601682,0.05750416,2761.7,2761.6,0.257]
[1740278602015,4.63941883,2761.8,2761.6,0.257]
[1740278602310,0.05750416,2761.7,2761.6,0.257]
[1740278602614,4.63941883,2761.8,2761.6,0.257]
[1740278602812,0.05750416,2761.7,2761.6,0.257]
[1740278603218,4.63941883,2761.8,2761.6,0.257]
[1740278603420,0.05750416,2761.7,2761.6,0.257]
[1740278603816,4.63941883,2761.8,2761.6,0.257]
[1740278604026,0.05750416,2761.7,2761.6,0.257]
[1740278604514,4.63941883,2761.8,2761.6,0.257]
[1740278604723,0.05750416,2761.7,2761.6,0.257]
[1740278604879,0.05750416,2761.7,2761.6,0.654882]
[1740278605218,0.05765902,2761.7,2761.6,0.654882]
[1740278605422,1.63941883,2761.8,2761.6,0.654882]
[1740278605600,0.05765902,2761.7,2761.6,0.654882]
[1740278605801,1.63941883,2761.8,2761.6,0.654882]
[1740278606001,0.05765902,2761.7,2761.6,0.257]
[1740278606212,1.63941883,2761.8,2761.6,0.257]
[1740278606542,0.05765902,2761.7,2761.6,0.257]
[1740278606825,1.63941883,2761.8,2761.6,0.257]
[1740278606990,0.05765902,2761.7,2761.6,0.257]
[1740278607194,1.63941883,2761.8,2761.6,0.257]
[1740278607524,0.05765902,2761.7,2761.6,0.257]
[1740278607726,0.05765902,2761.7,2761.6,0.654862]
[1740278607886,1.63941883,2761.8,2761.6,0.654862]
[1740278608088,0.05765902,2761.7,2761.6,0.654862]
[1740278608284,1.63941883,2762.0,2761.6,0.654862]
[1740278608485,0.05765902,2761.7,2761.6,3.97858]
[1740278608686,6.05064883,2762.2,2761.6,3.97858]
[1740278608890,0.05760754,2761.7,2761.6,3.97858]
[1740278609090,6.05062883,2762.2,2761.7,3.62094]
[1740278609712,6.05062883,2762.2,2761.6,1.117478]
[1740278609713,3.62049,2762.1,2761.6,1.117478]
[1740278609891,6.05062883,2762.2,2761.6,1.117478]
[1740278610093,6.05062883,2762.2,2761.6,4.738478]
[1740278610297,6.05062883,2762.2,2761.7,3.62093]
[1740278610496,6.05062883,2762.2,2761.7,4.4568858]
[1740278610725,6.05062883,2762.2,2761.7,4.4568458]
[1740278610934,5.25972883,2762.2,2761.7,3.62083]
[1740278612837,0.05720792,2762.1,2761.7,3.62083]
[1740278613042,0.05720792,2762.1,2762.0,0.72066387]
[1740278617049,6.05041883,2762.4,2762.0,0.72066387]
[1740278617338,0.05514472,2762.1,2762.0,0.72066387]
[1740278617537,6.05041883,2762.4,2762.0,1.16483626]
[1740278617742,0.05514472,2762.1,2762.0,0.72066387]
[1740278617949,1.63941883,2762.4,2762.0,0.72066387]
[1740278617950,5.25951883,2762.4,2762.0,0.72066387]
[1740278618149,0.05514472,2762.1,2762.0,0.72066387]
[1740278618354,5.25951883,2762.4,2762.0,4.34122387]
[1740278618553,0.05514472,2762.1,2762.0,4.34122387]
[1740278618762,5.25951883,2762.4,2762.0,5.14747626]
[1740278618924,0.05514472,2762.1,2762.0,1.52691626]
[1740278619120,5.25951883,2762.4,2762.0,1.52691626]
[1740278619342,0.05514472,2762.1,2762.0,1.52691626]
[1740278619548,5.25951883,2762.4,2762.0,1.52691626]
[1740278619747,0.05514472,2762.1,2762.0,1.52691626]
[1740278619934,5.25951883,2762.4,2762.0,1.52691626]
[1740278620145,0.05514472,2762.1,2762.0,1.52691626]
[1740278620348,5.25951883,2762.4,2762.0,1.52691626]
[1740278620544,0.05514472,2762.1,2762.0,1.52691626]
[1740278620737,5.25951883,2762.4,2762.0,1.52691626]
[1740278620925,0.05514472,2762.1,2762.0,1.52691626]
[1740278621125,5.25951883,2762.4,2762.0,1.52691626]
[1740278621358,0.05514472,2762.1,2762.0,1.52691626]
[1740278621579,5.25951883,2762.4,2762.0,1.52691626]
[1740278621761,0.05514472,2762.1,2762.0,1.52691626]
[1740278621947,5.25951883,2762.4,2762.0,1.52691626]
[1740278622464,0.05527036,2762.3,2762.1,0.52480763]
[1740278626864,0.05527036,2762.3,2762.1,3.62043]
[1740278627063,0.05527036,2762.3,2762.1,3.62033]
[1740278628457,0.05527036,2762.3,2762.0,4.34121387]
[1740278628837,0.05527036,2762.3,2762.0,7.96167387]
[1740278629732,0.05527036,2762.3,2762.0,4.34112387]
[1740278629933,0.05527036,2762.3,2762.1,0.44416239]
[1740278630160,0.05527036,2762.3,2762.0,0.72066387]
[1740278638895,1.63941883,2762.2,2762.0,0.72066387]
[1740278639110,2.44611883,2762.2,2762.0,0.72066387]
[1740278639303,3.6741367,2762.1,2762.0,0.72066387]
[1740278643502,0.0537067,2762.1,2762.0,0.72066387]
[1740278644722,3.6741367,2762.1,2762.0,0.72066387]
[1740278645687,4.4808367,2762.1,2762.0,0.72066387]
[1740278645889,7.4808367,2762.1,2762.0,0.72066387]
[1740278646291,4.42778,2761.6,2761.5,0.257]
[1740278646495,6.06719883,2761.6,2761.5,0.257]
[1740278646682,6.12022374,2761.6,2761.5,0.257]
[1740278647378,3.62122,2761.5,2761.4,0.73669325]
[1740278647582,3.67418206,2761.5,2761.4,0.73669325]
[1740278650709,0.05296206,2761.5,2761.4,0.73669325]
[1740278651226,0.05296206,2761.5,2761.4,1.20826558]
[1740278651517,0.05296206,2761.5,2761.4,4.82961558]
[1740278651924,0.8067,2761.9,2761.4,4.82961558]
[1740278652317,1.69225978,2761.8,2761.4,1.20826558]
[1740278652523,1.69225978,2761.8,2761.4,0.73669325]
[1740278654916,1.69225978,2761.8,2761.4,4.35795325]
[1740278655295,0.05284095,2761.8,2761.5,3.72163]
[1740278655500,0.05284095,2761.8,2761.6,3.62108]
[1740278655696,4.63941883,2762.2,2761.5,0.1005]
[1740278656029,4.63941883,2762.2,2761.7,3.62094]
[1740278656236,4.63941883,2762.2,2761.7,4.355204]
[1740278656616,3.0,2762.2,2761.7,4.355204]
[1740278657151,9.6733,2762.3,2761.9,3.6206]
[1740278657152,3.8131,2762.3,2761.9,3.6206]
[1740278657806,3.8131,2762.3,2762.0,0.73297099]
[1740278658448,0.8131,2762.3,2762.0,0.73297099]
[1740278658747,0.7615,2762.6,2762.0,1.54044909]
[1740278659049,6.61997,2762.5,2762.0,0.98997099]